[Event "Late-Titled-Tuesday-Blitz-January-30-2024"]
[Site "Chess.com"]
[Date "2024.01.30"]
[Round "1"]
[White "ElephantChessGenius"]
[Black "nindjaxx8"]
[Result "1/2-1/2"]
[WhiteElo "2259"]
[BlackElo "2598"]
[TimeControl "180+1"]
[EndTime "14:07:35 PST"]
[Termination "Game drawn by repetition"]

1. e4 {[%clk 0:02:59.4]} 1... e6 {[%clk 0:02:56.3]} 2. d3 {[%clk 0:02:51.6]}
2... d5 {[%clk 0:02:57.2]} 3. Nd2 {[%clk 0:02:49.6]} 3... Nf6 {[%clk 0:02:54.8]}
4. Ngf3 {[%clk 0:02:48.1]} 4... Nc6 {[%clk 0:02:54.7]} 5. g3 {[%clk 0:02:45.2]}
5... dxe4 {[%clk 0:02:54.6]} 6. dxe4 {[%clk 0:02:43.5]} 6... e5 {[%clk
0:02:55.5]} 7. Bg2 {[%clk 0:02:40]} 7... Bc5 {[%clk 0:02:55.5]} 8. O-O {[%clk
0:02:38.6]} 8... O-O {[%clk 0:02:55.1]} 9. c3 {[%clk 0:02:35.8]} 9... a5 {[%clk
0:02:47.8]} 10. a4 {[%clk 0:02:27.4]} 10... Qe7 {[%clk 0:02:47.1]} 11. Qc2
{[%clk 0:02:22.5]} 11... Be6 {[%clk 0:02:40.6]} 12. Rd1 {[%clk 0:02:09.3]} 12...
Rfd8 {[%clk 0:02:40]} 13. Nb3 {[%clk 0:02:03.7]} 13... Rxd1+ {[%clk 0:02:32.1]}
14. Qxd1 {[%clk 0:02:02.3]} 14... Bxb3 {[%clk 0:02:32.8]} 15. Qxb3 {[%clk
0:02:01.4]} 15... Ng4 {[%clk 0:02:33.7]} 16. Bg5 {[%clk 0:01:46]} 16... Qe8
{[%clk 0:02:14.6]} 17. Rf1 {[%clk 0:01:35.1]} 17... b6 {[%clk 0:02:06.9]} 18. h3
{[%clk 0:01:33.2]} 18... Nxf2 {[%clk 0:01:52.6]} 19. Rxf2 {[%clk 0:01:31.5]}
19... h6 {[%clk 0:01:52.5]} 20. Bd2 {[%clk 0:01:22.2]} 20... Rd8 {[%clk
0:01:51.8]} 21. Kf1 {[%clk 0:01:14.2]} 21... Bxf2 {[%clk 0:01:41.6]} 22. Kxf2
{[%clk 0:01:15.1]} 22... Qe7 {[%clk 0:01:25.5]} 23. Be3 {[%clk 0:01:10.8]} 23...
Nb8 {[%clk 0:01:23.7]} 24. Nd2 {[%clk 0:01:05.2]} 24... Nd7 {[%clk 0:01:22.4]}
25. Nc4 {[%clk 0:01:01.8]} 25... Nc5 {[%clk 0:01:08.4]} 26. Bxc5 {[%clk
0:00:51.5]} 26... Qxc5+ {[%clk 0:01:09.3]} 27. Ke2 {[%clk 0:00:48.7]} 27... Qg1
{[%clk 0:01:07]} 28. Ne3 {[%clk 0:00:47.2]} 28... Qh2 {[%clk 0:00:39.7]} 29. Qc4
{[%clk 0:00:36.3]} 29... c5 {[%clk 0:00:24.3]} 30. Qb5 {[%clk 0:00:31.5]} 30...
Rd6 {[%clk 0:00:14.2]} 31. Qe8+ {[%clk 0:00:27.8]} 31... Kh7 {[%clk 0:00:14.8]}
32. Qxf7 {[%clk 0:00:27.5]} 32... Rf6 {[%clk 0:00:15]} 33. Qd7 {[%clk
0:00:19.7]} 33... Qxg3 {[%clk 0:00:15.2]} 34. Qg4 {[%clk 0:00:14.1]} 34... Rf2+
{[%clk 0:00:15.1]} 35. Kd3 {[%clk 0:00:13.4]} 35... Rxg2 {[%clk 0:00:13.9]} 36.
Qf5+ {[%clk 0:00:11]} 36... Kg8 {[%clk 0:00:07.2]} 37. Qc8+ {[%clk 0:00:08.4]}
37... Kf7 {[%clk 0:00:07]} 38. Qd7+ {[%clk 0:00:08]} 38... Kf8 {[%clk
0:00:05.4]} 39. Qd8+ {[%clk 0:00:07.4]} 39... Kf7 {[%clk 0:00:05]} 40. Qd7+
{[%clk 0:00:07.9]} 40... Kg8 {[%clk 0:00:05.1]} 41. Qe6+ {[%clk 0:00:05.4]}
41... Kh8 {[%clk 0:00:04.5]} 42. Qc8+ {[%clk 0:00:05]} 42... Kh7 {[%clk
0:00:05.1]} 43. Qf5+ {[%clk 0:00:05]} 43... Kg8 {[%clk 0:00:04.1]} 44. Qc8+
{[%clk 0:00:05.2]} 44... Kf7 {[%clk 0:00:04.2]} 45. Qd7+ {[%clk 0:00:05.3]}
1/2-1/2

[Event "Late-Titled-Tuesday-Blitz-January-30-2024"]
[Site "Chess.com"]
[Date "2024.01.30"]
[Round "1"]
[White "ogpin"]
[Black "zverr1"]
[Result "0-1"]
[WhiteElo "2227"]
[BlackElo "2602"]
[TimeControl "180+1"]
[EndTime "14:07:37 PST"]
[Termination "zverr1 won by checkmate"]

1. e4 {[%clk 0:02:58.6]} 1... c5 {[%clk 0:02:59.6]} 2. Nf3 {[%clk 0:02:58.8]}
2... g6 {[%clk 0:02:59.4]} 3. d4 {[%clk 0:02:58.1]} 3... cxd4 {[%clk 0:03:00.3]}
4. Qxd4 {[%clk 0:02:58.9]} 4... Nf6 {[%clk 0:03:00.5]} 5. Nc3 {[%clk 0:02:58.7]}
5... Nc6 {[%clk 0:03:01]} 6. Qa4 {[%clk 0:02:58.6]} 6... d6 {[%clk 0:03:01.6]}
7. e5 {[%clk 0:02:58.8]} 7... dxe5 {[%clk 0:03:02.1]} 8. Nxe5 {[%clk 0:02:57.8]}
8... Bd7 {[%clk 0:03:00.5]} 9. Nxd7 {[%clk 0:02:55.1]} 9... Nxd7 {[%clk
0:03:01.4]} 10. Bb5 {[%clk 0:02:51.8]} 10... Bg7 {[%clk 0:03:01.3]} 11. O-O
{[%clk 0:02:47.6]} 11... O-O {[%clk 0:02:57.8]} 12. Bxc6 {[%clk 0:02:47.8]}
12... Nb6 {[%clk 0:02:50.1]} 13. Qe4 {[%clk 0:02:32.9]} 13... bxc6 {[%clk
0:02:49.8]} 14. Qxc6 {[%clk 0:02:33.8]} 14... Rc8 {[%clk 0:02:45.4]} 15. Qe4
{[%clk 0:02:29.8]} 15... e6 {[%clk 0:02:13.5]} 16. Rd1 {[%clk 0:02:17.8]} 16...
Qe7 {[%clk 0:02:04.3]} 17. Bd2 {[%clk 0:02:05.3]} 17... Nc4 {[%clk 0:01:56.5]}
18. Rac1 {[%clk 0:01:37.1]} 18... Nxb2 {[%clk 0:01:27.2]} 19. Nd5 {[%clk
0:01:37.1]} 19... Qc5 {[%clk 0:01:04.4]} 20. Bb4 {[%clk 0:01:33.5]} 20... exd5
{[%clk 0:00:59.8]} 21. Rxd5 {[%clk 0:01:15.8]} 21... Qc4 {[%clk 0:00:31.4]} 22.
Qxc4 {[%clk 0:01:13]} 22... Rxc4 {[%clk 0:00:32.3]} 23. Bxf8 {[%clk 0:01:13.1]}
23... Bxf8 {[%clk 0:00:33.2]} 24. g3 {[%clk 0:01:05.8]} 24... Kg7 {[%clk
0:00:31.8]} 25. Rb5 {[%clk 0:01:00.2]} 25... Na4 {[%clk 0:00:26]} 26. Ra5 {[%clk
0:01:00.4]} 26... Bc5 {[%clk 0:00:21.7]} 27. Rb1 {[%clk 0:00:57]} 27... Bb6
{[%clk 0:00:21.1]} 28. Ra6 {[%clk 0:00:53.4]} 28... Nc3 {[%clk 0:00:20.1]} 29.
Rb3 {[%clk 0:00:47.7]} 29... Ne4 {[%clk 0:00:18]} 30. Rbxb6 {[%clk 0:00:14.4]}
30... axb6 {[%clk 0:00:15.8]} 31. f3 {[%clk 0:00:14.7]} 31... Nd2 {[%clk
0:00:10.2]} 32. Rxb6 {[%clk 0:00:14.8]} 32... Rxc2 {[%clk 0:00:08]} 33. Ra6
{[%clk 0:00:04.2]} 33... Nxf3+ {[%clk 0:00:07.7]} 34. Kf1 {[%clk 0:00:05]} 34...
Nxh2+ {[%clk 0:00:08.4]} 35. Kg1 {[%clk 0:00:05.6]} 35... Nf3+ {[%clk
0:00:07.3]} 36. Kf1 {[%clk 0:00:06.3]} 36... h5 {[%clk 0:00:06]} 37. a4 {[%clk
0:00:06.8]} 37... Ra2 {[%clk 0:00:06.3]} 38. a5 {[%clk 0:00:07]} 38... g5 {[%clk
0:00:06.3]} 39. Ra8 {[%clk 0:00:07.2]} 39... h4 {[%clk 0:00:06.4]} 40. gxh4
{[%clk 0:00:08.1]} 40... g4 {[%clk 0:00:06.9]} 41. a6 {[%clk 0:00:09]} 41... g3
{[%clk 0:00:07.4]} 42. h5 {[%clk 0:00:07.1]} 42... Rf2# {[%clk 0:00:07.9]} 0-1

[Event "Late-Titled-Tuesday-Blitz-January-30-2024"]
[Site "Chess.com"]
[Date "2024.01.30"]
[Round "1"]
[White "PawnEatingZombie"]
[Black "Lady_Nika"]
[Result "0-1"]
[WhiteElo "2148"]
[BlackElo "2585"]
[TimeControl "180+1"]
[EndTime "14:07:37 PST"]
[Termination "Lady_Nika won by resignation"]

1. e4 {[%clk 0:03:00.9]} 1... e6 {[%clk 0:02:59.5]} 2. d4 {[%clk 0:03:00.2]}
2... d5 {[%clk 0:02:59]} 3. exd5 {[%clk 0:03:00.8]} 3... exd5 {[%clk 0:02:58.3]}
4. Bf4 {[%clk 0:03:01.2]} 4... Nf6 {[%clk 0:02:57.2]} 5. Nc3 {[%clk 0:03:00.5]}
5... c6 {[%clk 0:02:56.7]} 6. Qd2 {[%clk 0:02:58.1]} 6... Bd6 {[%clk 0:02:56.5]}
7. O-O-O {[%clk 0:02:56.3]} 7... O-O {[%clk 0:02:56.1]} 8. f3 {[%clk 0:02:56.2]}
8... b5 {[%clk 0:02:56.1]} 9. g4 {[%clk 0:02:54.3]} 9... a5 {[%clk 0:02:56.4]}
10. Bxd6 {[%clk 0:02:54.3]} 10... Qxd6 {[%clk 0:02:56.4]} 11. Nh3 {[%clk
0:02:54.3]} 11... a4 {[%clk 0:02:55.4]} 12. Qf4 {[%clk 0:02:54.6]} 12... Qb4
{[%clk 0:02:47.2]} 13. a3 {[%clk 0:02:36.4]} 13... Qa5 {[%clk 0:02:40.5]} 14.
Na2 {[%clk 0:02:35.7]} 14... Na6 {[%clk 0:02:39.7]} 15. Qd2 {[%clk 0:02:35]}
15... Qb6 {[%clk 0:02:34.3]} 16. Nf4 {[%clk 0:02:28.1]} 16... Ne8 {[%clk
0:02:31.5]} 17. Nb4 {[%clk 0:02:14.1]} 17... Nd6 {[%clk 0:02:25]} 18. Nxa6
{[%clk 0:02:13.4]} 18... Bxa6 {[%clk 0:02:24.6]} 19. Qb4 {[%clk 0:02:08.8]}
19... Qc7 {[%clk 0:02:23]} 20. Nd3 {[%clk 0:02:04.2]} 20... Nc4 {[%clk
0:02:20.3]} 21. Nc5 {[%clk 0:01:58.7]} 21... Qf4+ {[%clk 0:02:15.4]} 22. Kb1
{[%clk 0:01:51.1]} 22... Qxf3 {[%clk 0:02:13.7]} 23. Bxc4 {[%clk 0:01:50.6]}
23... bxc4 {[%clk 0:02:10.8]} 24. Nxa6 {[%clk 0:01:37.7]} 24... Rxa6 {[%clk
0:02:10.3]} 25. Qb7 {[%clk 0:01:09.2]} 25... Raa8 {[%clk 0:02:01.6]} 26. Qxc6
{[%clk 0:01:08.4]} 26... Rab8 {[%clk 0:02:00.8]} 27. Ka2 {[%clk 0:01:04.8]}
27... Rfc8 {[%clk 0:01:50.6]} 28. Qxa4 {[%clk 0:00:57]} 28... Qxg4 {[%clk
0:01:50.2]} 29. Rhg1 {[%clk 0:00:48.3]} 29... Qh4 {[%clk 0:01:49.9]} 30. Qd7
{[%clk 0:00:38.4]} 30... c3 {[%clk 0:01:42.1]} 31. b3 {[%clk 0:00:32.7]} 31...
Qxh2 {[%clk 0:01:41.4]} 32. Qf5 {[%clk 0:00:21.3]} 32... Qd6 {[%clk 0:01:31.3]}
33. Rd3 {[%clk 0:00:09.5]} 33... Rc7 {[%clk 0:01:29.7]} 34. a4 {[%clk 0:00:09]}
34... g6 {[%clk 0:01:28.1]} 35. Qe5 {[%clk 0:00:04.7]} 35... Qc6 {[%clk
0:01:17.6]} 36. Rgg3 {[%clk 0:00:03.7]} 36... Ra8 {[%clk 0:01:16.9]} 37. Rxc3
{[%clk 0:00:03.1]} 37... Qxc3 {[%clk 0:01:07]} 38. Rxc3 {[%clk 0:00:04]} 38...
Rxc3 {[%clk 0:01:07.1]} 39. Kb2 {[%clk 0:00:04.1]} 39... Rac8 {[%clk 0:01:06.3]}
40. Qxd5 {[%clk 0:00:04.2]} 40... Rxc2+ {[%clk 0:01:06.2]} 41. Ka3 {[%clk
0:00:04.8]} 41... h5 {[%clk 0:01:04.6]} 42. a5 {[%clk 0:00:05.1]} 42... h4
{[%clk 0:01:04.6]} 43. a6 {[%clk 0:00:05.4]} 43... Rc1 {[%clk 0:01:03.5]} 44.
Kb2 {[%clk 0:00:03.9]} 44... R1c7 {[%clk 0:01:01.8]} 45. a7 {[%clk 0:00:02.6]}
45... Rxa7 {[%clk 0:01:01.4]} 46. Qg5 {[%clk 0:00:03.3]} 46... h3 {[%clk
0:00:59.7]} 47. Qg4 {[%clk 0:00:03.6]} 47... Rd8 {[%clk 0:00:56.3]} 48. Qxh3
{[%clk 0:00:03.6]} 48... Rxd4 {[%clk 0:00:55.9]} 49. Qc8+ {[%clk 0:00:03.6]}
49... Kg7 {[%clk 0:00:53.9]} 50. Qc3 {[%clk 0:00:04.1]} 50... Rd7 {[%clk
0:00:54.2]} 51. b4 {[%clk 0:00:04.7]} 51... Kf8 {[%clk 0:00:49.4]} 52. b5 {[%clk
0:00:05.1]} 52... Rd2+ {[%clk 0:00:48.1]} 53. Kb1 {[%clk 0:00:04.1]} 53... Rd1+
{[%clk 0:00:47.2]} 54. Kb2 {[%clk 0:00:04.2]} 54... R7d2+ {[%clk 0:00:47.3]} 55.
Kb3 {[%clk 0:00:04.1]} 55... Rd3 {[%clk 0:00:47.3]} 56. b6 {[%clk 0:00:04.2]}
56... Rxc3+ {[%clk 0:00:47.2]} 57. Kxc3 {[%clk 0:00:05.1]} 57... Rb1 {[%clk
0:00:47.4]} 0-1

[Event "Late-Titled-Tuesday-Blitz-January-30-2024"]
[Site "Chess.com"]
[Date "2024.01.30"]
[Round "1"]
[White "StellarChess"]
[Black "Bala-Afiada"]
[Result "1-0"]
[WhiteElo "2559"]
[BlackElo "2021"]
[TimeControl "180+1"]
[EndTime "14:07:37 PST"]
[Termination "StellarChess won by checkmate"]

1. d4 {[%clk 0:02:59.5]} 1... Nf6 {[%clk 0:02:59.2]} 2. Bg5 {[%clk 0:02:59.2]}
2... e6 {[%clk 0:02:58.9]} 3. e4 {[%clk 0:02:58.5]} 3... Be7 {[%clk 0:02:57.6]}
4. Nd2 {[%clk 0:02:58.7]} 4... h6 {[%clk 0:02:40.4]} 5. Bxf6 {[%clk 0:02:58.8]}
5... Bxf6 {[%clk 0:02:41.3]} 6. c3 {[%clk 0:02:59.7]} 6... d6 {[%clk 0:02:40.2]}
7. f4 {[%clk 0:02:59.9]} 7... O-O {[%clk 0:02:38.6]} 8. Ngf3 {[%clk 0:03:00]}
8... c5 {[%clk 0:02:38.9]} 9. dxc5 {[%clk 0:02:59.1]} 9... dxc5 {[%clk
0:02:31.4]} 10. e5 {[%clk 0:02:59.3]} 10... Be7 {[%clk 0:02:31.4]} 11. Ne4
{[%clk 0:02:59.4]} 11... Nc6 {[%clk 0:02:28.1]} 12. Qxd8 {[%clk 0:02:58.8]}
12... Rxd8 {[%clk 0:02:29]} 13. Bb5 {[%clk 0:02:52.4]} 13... Bd7 {[%clk
0:02:22.1]} 14. O-O-O {[%clk 0:02:49.5]} 14... a6 {[%clk 0:02:19.9]} 15. Bd3
{[%clk 0:02:41.2]} 15... b5 {[%clk 0:02:10]} 16. Bc2 {[%clk 0:02:41.3]} 16... b4
{[%clk 0:02:06.6]} 17. g4 {[%clk 0:02:38]} 17... bxc3 {[%clk 0:02:04.2]} 18.
bxc3 {[%clk 0:02:38.9]} 18... c4 {[%clk 0:01:55.6]} 19. h4 {[%clk 0:02:32.9]}
19... Rab8 {[%clk 0:01:50.6]} 20. Nd6 {[%clk 0:02:27.4]} 20... f6 {[%clk
0:01:37.5]} 21. g5 {[%clk 0:02:24.7]} 21... fxe5 {[%clk 0:01:34.2]} 22. fxe5
{[%clk 0:02:25.6]} 22... Be8 {[%clk 0:01:15.8]} 23. gxh6 {[%clk 0:02:24.1]}
23... Nxe5 {[%clk 0:01:07.2]} 24. Nxe5 {[%clk 0:02:20]} 24... Bxd6 {[%clk
0:01:02.6]} 25. Rxd6 {[%clk 0:01:57.6]} 25... Rxd6 {[%clk 0:01:02.4]} 26. Rg1
{[%clk 0:01:52.4]} 26... Rb7 {[%clk 0:00:54.4]} 27. h7+ {[%clk 0:01:52.3]} 27...
Kh8 {[%clk 0:00:53.1]} 28. Rf1 {[%clk 0:01:51]} 28... g6 {[%clk 0:00:24.4]} 29.
Rf8+ {[%clk 0:01:50.8]} 29... Kxh7 {[%clk 0:00:24.9]} 30. Rxe8 {[%clk
0:01:51.7]} 30... Kg7 {[%clk 0:00:10.3]} 31. Nxg6 {[%clk 0:01:38]} 31... Rb5
{[%clk 0:00:06.6]} 32. Re7+ {[%clk 0:01:29.8]} 32... Kf6 {[%clk 0:00:06.4]} 33.
Re8 {[%clk 0:01:27]} 33... Rh5 {[%clk 0:00:06.3]} 34. Rf8+ {[%clk 0:01:27.3]}
34... Kg7 {[%clk 0:00:05.9]} 35. Rf4 {[%clk 0:01:26.4]} 35... e5 {[%clk
0:00:04.8]} 36. Rxc4 {[%clk 0:01:23.9]} 36... Rf6 {[%clk 0:00:05.2]} 37. Rc7+
{[%clk 0:01:21.5]} 37... Kh6 {[%clk 0:00:05]} 38. a4 {[%clk 0:01:16.1]} 38...
Rxg6 {[%clk 0:00:05.4]} 39. Bxg6 {[%clk 0:01:15.4]} 39... Kxg6 {[%clk
0:00:06.3]} 40. Rc6+ {[%clk 0:01:15.4]} 40... Kf5 {[%clk 0:00:07]} 41. Rxa6
{[%clk 0:01:15.5]} 41... Rxh4 {[%clk 0:00:07.7]} 42. Kc2 {[%clk 0:01:15.9]}
42... Ke4 {[%clk 0:00:06.5]} 43. Rd6 {[%clk 0:01:13.3]} 43... Rh3 {[%clk
0:00:06.6]} 44. a5 {[%clk 0:01:10.8]} 44... Rh7 {[%clk 0:00:05.7]} 45. Kb3
{[%clk 0:01:10]} 45... Ra7 {[%clk 0:00:06.3]} 46. Kb4 {[%clk 0:01:09.4]} 46...
Kf3 {[%clk 0:00:06.8]} 47. Kb5 {[%clk 0:01:07.1]} 47... e4 {[%clk 0:00:07.2]}
48. Kb6 {[%clk 0:01:05.5]} 48... Ra8 {[%clk 0:00:07.6]} 49. c4 {[%clk
0:01:04.2]} 49... e3 {[%clk 0:00:08.1]} 50. Re6 {[%clk 0:01:04.7]} 50... Kf2
{[%clk 0:00:08.6]} 51. c5 {[%clk 0:01:05]} 51... e2 {[%clk 0:00:08.9]} 52. c6
{[%clk 0:01:05.6]} 52... e1=Q {[%clk 0:00:09.3]} 53. Rxe1 {[%clk 0:01:06.4]}
53... Kxe1 {[%clk 0:00:10]} 54. c7 {[%clk 0:01:05.7]} 54... Rh8 {[%clk
0:00:10.2]} 55. Kb7 {[%clk 0:01:05.4]} 55... Kd2 {[%clk 0:00:09.9]} 56. c8=Q
{[%clk 0:01:04.6]} 56... Rh7+ {[%clk 0:00:10]} 57. Kb6 {[%clk 0:01:04.6]} 57...
Rh6+ {[%clk 0:00:09.4]} 58. Kb5 {[%clk 0:01:04.8]} 58... Rh5+ {[%clk 0:00:09.9]}
59. Kb4 {[%clk 0:01:05.2]} 59... Rh4+ {[%clk 0:00:10.5]} 60. Kb3 {[%clk
0:01:05.1]} 60... Rh7 {[%clk 0:00:03]} 61. Qd8+ {[%clk 0:01:04.1]} 61... Ke1
{[%clk 0:00:02.7]} 62. Qe8+ {[%clk 0:01:02.9]} 62... Kd1 {[%clk 0:00:03.2]} 63.
a6 {[%clk 0:00:54]} 63... Kc1 {[%clk 0:00:01.7]} 64. Qe1# {[%clk 0:00:52.7]} 1-0

[Event "Late-Titled-Tuesday-Blitz-January-30-2024"]
[Site "Chess.com"]
[Date "2024.01.30"]
[Round "1"]
[White "rhungaski"]
[Black "platy3"]
[Result "1-0"]
[WhiteElo "2512"]
[BlackElo "2855"]
[TimeControl "180+1"]
[EndTime "14:07:39 PST"]
[Termination "rhungaski won on time"]

1. e4 {[%clk 0:03:00.9]} 1... c5 {[%clk 0:02:58.1]} 2. Nf3 {[%clk 0:03:00.8]}
2... e6 {[%clk 0:02:58.3]} 3. d4 {[%clk 0:03:00.6]} 3... cxd4 {[%clk 0:02:58.8]}
4. Nxd4 {[%clk 0:03:01.3]} 4... Nc6 {[%clk 0:02:59.2]} 5. Nb5 {[%clk 0:02:58.7]}
5... d6 {[%clk 0:02:57.8]} 6. c4 {[%clk 0:02:58.4]} 6... Nf6 {[%clk 0:02:57.2]}
7. N1c3 {[%clk 0:02:57.6]} 7... a6 {[%clk 0:02:57.6]} 8. Na3 {[%clk 0:02:57.9]}
8... Be7 {[%clk 0:02:58.1]} 9. Be2 {[%clk 0:02:58.5]} 9... O-O {[%clk
0:02:58.6]} 10. Bf4 {[%clk 0:02:57.1]} 10... b6 {[%clk 0:02:57.1]} 11. O-O
{[%clk 0:02:54.7]} 11... Bb7 {[%clk 0:02:56.8]} 12. Re1 {[%clk 0:02:55.3]} 12...
Ne5 {[%clk 0:02:53]} 13. Bf1 {[%clk 0:02:55.2]} 13... Rc8 {[%clk 0:02:43.7]} 14.
h3 {[%clk 0:02:55.1]} 14... Qc7 {[%clk 0:02:43.6]} 15. Qd2 {[%clk 0:02:51.3]}
15... Qb8 {[%clk 0:02:43.1]} 16. Qe3 {[%clk 0:02:37.5]} 16... Bd8 {[%clk
0:02:41.6]} 17. Kh1 {[%clk 0:02:35.4]} 17... Bc7 {[%clk 0:02:41.4]} 18. Rac1
{[%clk 0:02:18.4]} 18... Rfe8 {[%clk 0:02:40.8]} 19. Bg3 {[%clk 0:01:58.5]}
19... h6 {[%clk 0:02:39]} 20. b4 {[%clk 0:01:57.4]} 20... Qa8 {[%clk 0:02:14.7]}
21. Bxe5 {[%clk 0:01:25.2]} 21... dxe5 {[%clk 0:02:14.3]} 22. c5 {[%clk
0:01:26.1]} 22... bxc5 {[%clk 0:02:06.4]} 23. bxc5 {[%clk 0:01:26.6]} 23... Qa7
{[%clk 0:01:52.3]} 24. Nc4 {[%clk 0:01:18.3]} 24... Nd7 {[%clk 0:01:51.4]} 25.
Na4 {[%clk 0:01:15.7]} 25... Bc6 {[%clk 0:01:47.6]} 26. Nab6 {[%clk 0:01:13.6]}
26... Rcd8 {[%clk 0:01:47.7]} 27. a4 {[%clk 0:00:47.1]} 27... a5 {[%clk
0:01:36.7]} 28. Red1 {[%clk 0:00:44.1]} 28... Nf6 {[%clk 0:01:33.4]} 29. f3
{[%clk 0:00:42.3]} 29... Nh5 {[%clk 0:00:41]} 30. Kh2 {[%clk 0:00:42]} 30... f5
{[%clk 0:00:32.2]} 31. exf5 {[%clk 0:00:31.6]} 31... e4+ {[%clk 0:00:29.7]} 32.
Nd6 {[%clk 0:00:31.6]} 32... exf5 {[%clk 0:00:25.2]} 33. f4 {[%clk 0:00:22.1]}
33... Kh7 {[%clk 0:00:20.7]} 34. g4 {[%clk 0:00:20.3]} 34... fxg4 {[%clk
0:00:19.8]} 35. hxg4 {[%clk 0:00:20.8]} 35... Nf6 {[%clk 0:00:20.5]} 36. Bh3
{[%clk 0:00:20.8]} 36... Bxd6 {[%clk 0:00:16.2]} 37. Rxd6 {[%clk 0:00:20.3]}
37... Qc7 {[%clk 0:00:05.4]} 38. Rcd1 {[%clk 0:00:19.1]} 38... Rxd6 {[%clk
0:00:05.2]} 39. Rxd6 {[%clk 0:00:19]} 39... Rd8 {[%clk 0:00:05.7]} 40. Qd4
{[%clk 0:00:19.2]} 40... Rxd6 {[%clk 0:00:04.7]} 41. cxd6 {[%clk 0:00:20.1]}
41... Qd8 {[%clk 0:00:04.6]} 42. g5 {[%clk 0:00:20.3]} 42... hxg5 {[%clk
0:00:04.4]} 43. fxg5 {[%clk 0:00:21.2]} 43... Nh5 {[%clk 0:00:04.7]} 44. Qe5
{[%clk 0:00:16.8]} 44... e3 {[%clk 0:00:04.2]} 45. Bf5+ {[%clk 0:00:17]} 45...
Kh8 {[%clk 0:00:03.6]} 46. d7 {[%clk 0:00:16.5]} 1-0

[Event "Late-Titled-Tuesday-Blitz-January-30-2024"]
[Site "Chess.com"]
[Date "2024.01.30"]
[Round "1"]
[White "Anar_Aliakbarov"]
[Black "Matalon"]
[Result "1-0"]
[WhiteElo "2651"]
[BlackElo "2335"]
[TimeControl "180+1"]
[EndTime "14:07:39 PST"]
[Termination "Anar_Aliakbarov won on time"]

1. d4 {[%clk 0:03:00.9]} 1... Nf6 {[%clk 0:02:58.8]} 2. c4 {[%clk 0:02:58.6]}
2... g6 {[%clk 0:02:59.3]} 3. Nc3 {[%clk 0:02:58.3]} 3... Bg7 {[%clk 0:02:59.8]}
4. e4 {[%clk 0:02:58.9]} 4... d6 {[%clk 0:03:00]} 5. Nf3 {[%clk 0:02:59.5]} 5...
O-O {[%clk 0:03:00.4]} 6. Be2 {[%clk 0:03:00.2]} 6... Bg4 {[%clk 0:02:59.9]} 7.
Be3 {[%clk 0:02:59.7]} 7... Nfd7 {[%clk 0:02:59.6]} 8. Ng1 {[%clk 0:02:58.6]}
8... Bxe2 {[%clk 0:02:57.7]} 9. Ngxe2 {[%clk 0:02:59.5]} 9... e5 {[%clk
0:02:57.1]} 10. d5 {[%clk 0:02:58.3]} 10... f5 {[%clk 0:02:56.2]} 11. f3 {[%clk
0:02:58.8]} 11... Bh6 {[%clk 0:02:56.6]} 12. Bf2 {[%clk 0:02:36]} 12... Nf6
{[%clk 0:02:53.3]} 13. Qc2 {[%clk 0:02:29.7]} 13... Kh8 {[%clk 0:02:19.5]} 14.
exf5 {[%clk 0:02:25.4]} 14... gxf5 {[%clk 0:02:18.3]} 15. O-O {[%clk 0:02:24.4]}
15... Nh5 {[%clk 0:02:15.5]} 16. Ng3 {[%clk 0:02:11.8]} 16... Qg5 {[%clk
0:02:07.4]} 17. Nxh5 {[%clk 0:02:05.3]} 17... Qxh5 {[%clk 0:02:07.1]} 18. Rae1
{[%clk 0:01:28.4]} 18... Nd7 {[%clk 0:02:05.9]} 19. Nb5 {[%clk 0:01:25.7]} 19...
Rg8 {[%clk 0:01:46.3]} 20. Be3 {[%clk 0:01:22.9]} 20... Bxe3+ {[%clk 0:01:20.3]}
21. Rxe3 {[%clk 0:01:23.8]} 21... Rgc8 {[%clk 0:01:11.3]} 22. f4 {[%clk
0:01:13.2]} 22... a6 {[%clk 0:01:08.4]} 23. Nc3 {[%clk 0:00:53.2]} 23... e4
{[%clk 0:01:06.2]} 24. Ne2 {[%clk 0:00:50.1]} 24... Rg8 {[%clk 0:01:00]} 25.
Qc3+ {[%clk 0:00:44.6]} 25... Rg7 {[%clk 0:00:57.8]} 26. Nd4 {[%clk 0:00:42.4]}
26... Nf8 {[%clk 0:00:45.2]} 27. Rg3 {[%clk 0:00:29.8]} 27... Rxg3 {[%clk
0:00:37.6]} 28. hxg3 {[%clk 0:00:30.1]} 28... Kg8 {[%clk 0:00:37.5]} 29. Kf2
{[%clk 0:00:27.1]} 29... Re8 {[%clk 0:00:35.3]} 30. Rh1 {[%clk 0:00:21.5]} 30...
Qg6 {[%clk 0:00:34.1]} 31. Nc2 {[%clk 0:00:17.9]} 31... Nd7 {[%clk 0:00:31.7]}
32. b4 {[%clk 0:00:16.4]} 32... Nf6 {[%clk 0:00:31.1]} 33. Ne3 {[%clk
0:00:16.6]} 33... Ng4+ {[%clk 0:00:31]} 34. Nxg4 {[%clk 0:00:15]} 34... Qxg4
{[%clk 0:00:30]} 35. Rh4 {[%clk 0:00:12.3]} 35... Qg6 {[%clk 0:00:23.1]} 36. Qe3
{[%clk 0:00:07.9]} 36... Qf6 {[%clk 0:00:22.2]} 37. Rh5 {[%clk 0:00:06.4]} 37...
Qb2+ {[%clk 0:00:21.2]} 38. Kg1 {[%clk 0:00:06.5]} 38... Qxb4 {[%clk 0:00:18.9]}
39. Rg5+ {[%clk 0:00:05.5]} 39... Kh8 {[%clk 0:00:16.8]} 40. Qd4+ {[%clk
0:00:02.9]} 40... Re5 {[%clk 0:00:15.6]} 41. fxe5 {[%clk 0:00:03.8]} 41... Qe1+
{[%clk 0:00:12.4]} 42. Kh2 {[%clk 0:00:04.3]} 42... h6 {[%clk 0:00:01.4]} 43.
e6+ {[%clk 0:00:04.2]} 1-0